bitfinex-derivatives/quotes_ETHF0:USTF0_20230403
["timestamp","ask_amount","ask_price","bid_price","bid_amount"]
[1680530903982,1.105,1807.4,1807.0,4.88839975]
[1680530904291,1.105,1807.4,1807.1,4.2078]
[1680530904484,1.105,1807.4,1807.1,3.2078]
[1680530905582,1.105,1807.6,1807.3,3.2078]
[1680530905980,1.105,1807.6,1807.2,1.67059975]
[1680530906187,1.105,1807.6,1807.3,3.2078]
[1680530906587,1.105,1807.6,1807.2,2.67059975]
[1680530906789,1.105,1807.6,1807.3,1.0]
[1680530907284,1.105,1807.6,1807.3,4.2078]
[1680530907982,1.105,1807.6,1807.3,3.2078]
[1680530908286,1.105,1807.6,1807.2,3.53433289]
[1680530908988,1.105,1807.6,1807.3,0.57559975]
[1680530909177,1.105,1807.6,1807.3,1.57559975]
[1680530910490,1.105,1807.6,1807.3,4.78339975]
[1680530910790,1.105,1807.6,1807.3,3.78339975]
[1680530911591,1.105,1807.6,1807.4,0.24377091]
[1680530911993,1.105,1807.6,1807.3,3.78339975]
[1680530915294,1.105,1807.6,1807.4,0.24380678]
[1680530915687,1.105,1807.6,1807.3,3.78339975]
[1680530917194,2.0138407,1808.1,1807.5,4.3128]
[1680530917396,3.11051028,1808.2,1808.0,1.105]
[1680530917600,0.57924908,1808.3,1808.1,3.2078]
[1680530917986,0.57924908,1808.4,1808.1,3.2078]
[1680530918292,2.25180138,1808.5,1808.1,3.2078]
[1680530918490,3.12152658,1808.5,1808.1,3.2078]
[1680530919490,1.098,1808.2,1807.9,0.57522014]
[1680530919688,1.098,1808.2,1807.8,3.78302014]
[1680530919886,1.098,1808.2,1807.8,3.2078]
[1680530920495,1.098,1808.2,1808.0,3.2078]
[1680530921692,3.201,1808.1,1807.5,4.78302014]
[1680530921898,1.105,1807.8,1807.5,4.78302014]
[1680530922493,1.105,1807.8,1807.5,3.78302014]
[1680530922690,1.105,1807.9,1807.5,3.78302014]
[1680530922893,1.105,1807.9,1807.5,3.2078]
[1680530923588,1.105,1807.9,1807.4,1.67622014]
[1680530924095,2.105,1807.9,1807.4,1.67622014]
[1680530924295,1.105,1807.9,1807.4,1.67622014]
[1680530927108,3.2078,1808.0,1807.6,1.105]
[1680530927300,0.54236162,1808.0,1807.7,3.2078]
[1680530927608,3.78704908,1808.2,1807.7,3.2078]
[1680530927807,1.096,1807.9,1807.7,3.2078]
[1680530928002,1.096,1807.9,1807.5,3.2078]
[1680530930212,1.096,1807.9,1807.6,0.4458825]
[1680530931804,1.1,1807.7,1807.6,0.4458825]
[1680530932014,3.205,1807.7,1807.6,0.4458825]
[1680530932210,2.205,1807.7,1807.2,3.78302014]
[1680530932407,1.1,1807.5,1807.2,3.78302014]
[1680530934520,1.098,1807.7,1807.2,4.88802014]
[1680530935826,2.098,1807.7,1807.2,4.88802014]
[1680530936119,1.098,1807.7,1807.2,4.88802014]
[1680530936308,3.2078,1807.6,1807.2,4.88802014]
[1680530937519,1.098,1807.7,1807.2,4.88802014]
[1680530940516,1.098,1807.7,1807.2,3.78302014]
[1680530940716,1.096,1807.9,1807.4,1.105]
[1680530940915,1.096,1807.9,1807.4,4.3128]
[1680530941427,2.79655599,1807.9,1807.4,4.3128]
[1680530941619,1.105,1807.6,1807.4,3.2078]
[1680530941827,4.3058,1807.5,1807.1,1.43822241]
[1680530942021,4.3058,1807.5,1807.0,5.75102241]
[1680530942321,1.105,1807.4,1807.0,3.78302014]
[1680530944222,3.2078,1807.3,1807.0,0.57522014]
[1680530945328,0.07210368,1807.2,1807.0,0.57522014]
[1680530948432,3.2078,1807.1,1806.8,1.43822241]
[1680530948725,1.0,1807.0,1806.8,0.57522014]
[1680530948921,3.2078,1807.1,1806.8,0.57522014]
[1680530949233,3.2078,1807.1,1806.7,1.43822241]
[1680530949527,3.2078,1807.1,1806.7,0.57522014]
[1680530950523,3.2078,1807.1,1806.8,0.57522014]
[1680530950924,0.07210368,1807.2,1806.8,0.57522014]
[1680530951127,0.07210368,1807.2,1807.1,1.105]
[1680530951328,3.78704908,1807.5,1807.1,1.68022014]
[1680530951534,3.2078,1807.5,1807.3,1.105]
[1680530952132,3.2078,1807.5,1807.4,0.07603306]
[1680530952534,3.2078,1807.5,1807.2,2.105]
[1680530952726,3.2078,1807.5,1807.2,1.0]
[1680530952927,1.6586926,1807.6,1807.2,1.57522014]
[1680530953128,3.78704908,1807.7,1807.4,1.105]
[1680530953328,3.2078,1807.7,1807.4,1.105]
[1680530953732,3.78704908,1807.7,1807.4,1.105]
[1680530954033,3.2078,1807.7,1807.4,1.105]
[1680530954332,3.2078,1807.7,1807.3,3.2078]
[1680530954333,1.105,1807.4,1807.1,0.57522014]
[1680530954637,3.29893725,1807.3,1807.1,0.57522014]
[1680530954934,4.39893725,1807.3,1806.9,1.43822241]
[1680530955529,4.39893725,1807.3,1807.0,0.57522014]
[1680530955733,4.39893725,1807.3,1806.9,0.57522014]
[1680530960232,4.47121536,1807.3,1806.9,0.57522014]
[1680530960934,0.16341536,1807.3,1807.0,4.78302014]
[1680530961134,0.16341536,1807.3,1807.2,3.2078]
[1680530961336,1.1,1807.6,1807.2,4.78302014]
[1680530961535,1.1,1807.6,1807.3,1.0]
[1680530962038,4.3078,1807.7,1807.3,1.0]
[1680530962638,4.3078,1807.7,1807.2,5.88802014]
[1680530963534,4.3078,1807.7,1807.2,4.88802014]
[1680530964637,3.2078,1807.7,1807.4,1.105]
[1680530964847,8.27937925,1808.1,1807.6,4.88802014]
[1680530965039,0.57924908,1808.3,1807.9,3.2078]
[1680530965231,0.57924908,1808.4,1808.1,3.2078]
[1680530965432,1.67524908,1808.4,1807.9,3.2078]
[1680530965734,1.67524908,1808.4,1808.1,3.2078]
[1680530965936,1.67524908,1808.4,1807.8,4.2078]
[1680530966336,1.67524908,1808.4,1807.9,3.2078]
[1680530966537,2.54497428,1808.4,1807.9,3.2078]
[1680530966734,3.54497428,1808.4,1807.9,3.2078]
[1680530966938,2.54497428,1808.4,1807.9,3.2078]
[1680530967141,1.67524908,1808.4,1807.9,3.2078]
[1680530967344,1.0,1808.3,1807.9,3.2078]
[1680530967534,1.67524908,1808.4,1807.9,3.2078]
[1680530967535,2.67524908,1808.4,1807.9,3.2078]
[1680530967737,1.67524908,1808.4,1807.9,3.2078]
[1680530968341,2.67524908,1808.4,1807.9,3.2078]
[1680530968946,1.67524908,1808.4,1807.9,3.2078]
[1680530969853,2.67524908,1808.4,1807.9,3.2078]
[1680530970038,1.67524908,1808.4,1807.9,3.2078]
[1680530971147,1.098,1808.2,1807.9,3.2078]
[1680530971545,1.1,1808.0,1807.6,4.88802014]
[1680530971752,1.1,1808.0,1807.6,4.3128]
[1680530972249,1.105,1807.9,1807.6,3.2078]
[1680530973547,1.105,1807.9,1807.6,4.2078]
[1680530974452,1.105,1807.9,1807.6,3.2078]
[1680530974650,3.2078,1808.1,1807.5,0.57522014]
[1680530974651,1.105,1807.7,1807.5,0.57522014]
[1680530974852,1.105,1807.7,1807.4,4.33434243]
[1680530975154,1.105,1807.7,1807.5,0.35401922]
[1680530975450,1.105,1807.7,1807.6,3.2078]
[1680530976148,1.105,1807.7,1807.5,0.35401922]
[1680530976651,1.105,1807.7,1807.5,3.56181922]
[1680530979656,3.2078,1807.9,1807.5,4.65681922]
[1680530979849,0.57924908,1808.1,1807.6,1.105]
[1680530980056,1.65702631,1808.2,1807.7,3.2078]
[1680530980455,2.23627539,1808.2,1807.7,3.2078]
[1680530981055,2.23627539,1808.2,1807.8,1.0]
[1680530981255,4.0775252,1808.3,1808.1,3.2078]
[1680530981256,2.54697428,1808.3,1808.1,3.2078]
[1680530981454,1.098,1808.3,1808.1,3.2078]
[1680530982263,1.105,1808.4,1808.1,3.2078]
[1680530982958,2.105,1808.4,1808.1,3.2078]
[1680530983149,1.105,1808.4,1808.1,3.2078]
[1680530983758,1.098,1808.2,1807.7,4.2078]
[1680530983961,0.00551657,1808.1,1807.9,3.2078]
[1680530985152,0.00551657,1808.1,1808.0,1.0]
[1680530986355,0.57924908,1808.6,1808.0,1.0]
[1680530986561,0.57924908,1809.0,1808.5,3.2078]
[1680530986763,0.57924908,1809.1,1808.8,3.2078]
[1680530987864,1.68424908,1809.3,1809.0,3.2078]
[1680530988165,0.57924908,1809.4,1809.0,3.2078]
[1680530988358,0.57924908,1809.5,1809.2,3.2078]
[1680530988952,1.44897428,1809.5,1809.1,1.09289572]
[1680530989155,2.68424908,1809.6,1809.1,1.09289572]
[1680530989553,3.2078,1809.5,1809.1,1.09289572]
[1680530989759,3.78704908,1809.5,1809.1,1.09289572]
[1680530989959,1.105,1809.1,1808.7,3.2078]
[1680530990159,1.096,1808.9,1808.8,0.94778971]
[1680530990960,1.096,1808.9,1808.3,1.0]
[1680530990961,1.096,1808.9,1808.7,3.2078]
[1680530991362,1.096,1808.9,1808.5,3.2078]
[1680530991563,1.1,1808.5,1808.3,3.2078]
[1680530991765,1.1,1808.5,1808.1,3.2078]
[1680530991966,1.1,1808.5,1808.3,3.2078]
[1680530992757,1.1,1808.5,1808.1,3.2078]
[1680530992963,1.096,1808.5,1808.2,1.0]
[1680530993162,1.105,1808.4,1808.1,3.2078]
[1680530994265,1.0,1808.6,1807.9,1.56265362]
[1680530994266,1.098,1808.1,1807.9,3.2078]
[1680530994869,1.098,1808.1,1807.6,1.099]
[1680530994870,1.098,1808.1,1807.7,3.2078]
[1680530995160,1.098,1808.1,1807.9,3.2078]
[1680530995361,1.098,1808.1,1807.7,4.2078]
[1680530995567,1.098,1808.1,1807.8,1.0]
[1680530996267,1.098,1808.1,1807.7,4.2078]
[1680530996470,1.105,1807.9,1807.5,3.2078]
[1680530996661,1.1,1807.7,1807.5,3.2078]
[1680531000466,1.1,1807.7,1807.3,3.22423183]
[1680531000467,1.098,1807.6,1807.3,1.11923183]
[1680531000666,4.3038,1807.4,1807.0,1.43822241]
[1680531000867,3.2078,1807.2,1806.8,1.72468026]
[1680531001067,3.2078,1807.2,1806.8,0.57522014]
[1680531001373,3.2078,1807.2,1806.7,4.88402014]
[1680531001669,3.2078,1807.0,1806.7,1.67622014]
[1680531001970,3.2078,1807.0,1806.6,0.57522014]
[1680531002167,3.2078,1807.0,1806.7,0.57522014]
[1680531002368,3.2078,1807.0,1806.6,0.57522014]
[1680531002878,3.2078,1807.2,1806.8,1.105]
[1680531003072,1.105,1807.3,1806.8,1.105]
[1680531003271,1.105,1807.3,1806.9,3.2078]
[1680531004062,1.6716475,1807.3,1806.9,3.2078]
[1680531004469,0.5666475,1807.3,1806.9,3.2078]
[1680531004769,3.2078,1807.4,1806.9,3.2078]
[1680531005168,3.2078,1807.2,1806.7,3.78302014]
[1680531005671,3.2078,1807.2,1806.8,1.107]
[1680531005875,3.2078,1807.2,1806.8,2.107]
[1680531006071,0.35565853,1807.1,1806.8,2.107]
[1680531006373,0.35565853,1807.1,1806.8,1.107]
[1680531007171,0.35565853,1807.1,1806.9,1.0]
[1680531007379,0.35565853,1807.1,1806.9,4.2078]
[1680531007679,3.7678208,1807.4,1806.9,4.2078]
[1680531007880,5.9678208,1807.4,1806.9,3.2078]
[1680531009273,5.9678208,1807.4,1806.8,2.201]
[1680531009674,3.2078,1807.2,1806.8,2.201]
[1680531009980,0.35375506,1807.1,1806.8,2.201]
[1680531011382,5.9678208,1807.4,1806.8,2.201]
[1680531011580,3.2078,1807.2,1806.8,2.201]
[1680531012081,2.211,1807.3,1806.7,5.4208]
[1680531012378,2.211,1807.3,1806.8,1.0]
[1680531012981,2.211,1807.3,1806.7,5.4208]
[1680531013176,3.2078,1807.2,1806.7,5.4208]
[1680531013376,2.211,1807.3,1806.9,3.2078]
[1680531013576,5.9678208,1807.4,1807.0,1.0]
[1680531013777,2.7600208,1807.4,1807.0,1.0]
[1680531014170,2.7600208,1807.4,1806.9,5.4208]
[1680531015278,3.2078,1807.6,1807.1,5.4208]
[1680531015483,2.213,1807.7,1807.1,5.4208]
[1680531015682,2.213,1807.7,1807.3,3.2078]
[1680531016079,2.213,1807.7,1807.4,0.03997413]
[1680531016479,2.213,1807.7,1807.3,3.2078]
[1680531018285,2.213,1807.7,1807.1,5.4208]
[1680531019179,3.2078,1807.6,1807.1,5.4208]
[1680531019378,2.213,1807.5,1806.9,5.4198]
[1680531020288,3.2078,1807.4,1806.9,5.4198]
[1680531020484,3.2078,1807.4,1806.8,6.47831911]
[1680531020485,2.2,1807.2,1806.8,5.47831911]
[1680531020687,0.16753934,1807.1,1806.7,5.4158]
[1680531021081,2.2,1807.2,1806.7,5.4158]
[1680531021281,0.16463436,1807.0,1806.7,5.4158]
[1680531021483,2.2,1807.2,1806.8,1.0]
[1680531021683,0.16462992,1807.1,1806.8,1.0]
[1680531021889,2.2,1807.2,1806.8,1.0]
[1680531022078,2.2,1807.3,1806.9,3.2078]
[1680531022282,0.16462479,1807.1,1806.9,3.2078]
[1680531022487,2.2,1807.3,1806.8,3.213]
[1680531022692,2.2,1807.3,1806.9,3.2078]
[1680531025002,0.16459868,1807.2,1806.9,3.2078]
[1680531025503,0.16459868,1807.2,1807.0,1.0]
[1680531026394,0.16459868,1807.2,1806.9,3.2078]
[1680531029801,0.16459868,1807.2,1807.0,1.0]
[1680531030002,3.2078,1807.4,1807.0,1.0]
[1680531030500,3.2078,1807.4,1806.9,5.4158]
[1680531031507,3.2078,1807.4,1807.0,1.0]
[1680531031702,2.211,1807.5,1807.1,3.2078]
[1680531031902,3.2078,1807.6,1807.1,5.4198]
[1680531032203,3.2078,1807.6,1807.2,3.213]
[1680531032404,3.2078,1807.6,1807.3,1.0]
[1680531032605,5.4188,1807.6,1807.0,3.213]
[1680531032799,5.4188,1807.6,1807.1,3.2078]
[1680531033104,3.2078,1807.4,1807.0,2.213]
[1680531035799,3.2078,1807.4,1806.8,0.55613551]
[1680531035800,2.195,1807.3,1806.8,0.55613551]
[1680531036000,2.195,1807.3,1806.7,10.92022014]
[1680531036203,2.195,1807.3,1806.7,5.99602014]
[1680531036805,2.195,1807.3,1806.8,1.0]
[1680531037207,2.195,1807.3,1806.8,1.57522014]
[1680531038610,3.2078,1807.2,1806.8,0.57522014]
[1680531039202,3.2078,1807.2,1806.9,0.57522014]
[1680531039612,2.73890557,1807.3,1806.9,0.57522014]
[1680531040006,0.19048071,1807.2,1806.9,0.57522014]
[1680531040906,0.18519897,1807.2,1807.0,1.0]
[1680531041106,0.18519897,1807.2,1807.1,3.78302014]
[1680531041410,0.18519897,1807.2,1807.1,0.57522014]
[1680531041910,0.18519897,1807.2,1807.0,1.43822241]
[1680531042302,0.18519897,1807.2,1807.0,0.57522014]
[1680531042509,0.18519897,1807.2,1807.0,1.43822241]
[1680531042703,0.18519897,1807.2,1807.0,0.57522014]
[1680531042907,0.18519897,1807.2,1807.0,1.43822241]
[1680531043106,0.18519897,1807.2,1807.0,0.57522014]
[1680531043310,3.97224805,1807.2,1807.0,0.57522014]
[1680531043604,1.0,1807.0,1806.9,0.57522014]
[1680531043812,4.2078,1807.0,1806.9,0.57522014]
[1680531044108,4.2078,1807.0,1806.9,1.43822241]
[1680531044109,4.65677428,1807.0,1806.9,1.43822241]
[1680531044411,4.0775252,1807.0,1806.9,0.57522014]
[1680531045406,4.65743045,1807.0,1806.9,0.57522014]
[1680531047311,3.78770525,1807.0,1806.9,0.57522014]
[1680531048506,4.24207369,1807.0,1806.9,0.57522014]
[1680531053016,4.24207369,1807.0,1806.8,1.43822241]
[1680531053318,4.24207369,1807.0,1806.9,0.57522014]
[1680531054013,0.45436844,1807.0,1806.9,0.57522014]
[1680531054216,0.45436844,1807.0,1806.9,4.64602241]
[1680531054419,0.45436844,1807.0,1806.9,5.64602241]
[1680531054620,0.45436844,1807.0,1806.9,5.64893577]
[1680531055013,0.45436844,1807.0,1806.9,4.64893577]
[1680531055214,0.45436844,1807.0,1806.9,0.57810327]
[1680531056123,0.45436844,1807.0,1806.9,4.64901158]
[1680531056325,0.45436844,1807.0,1806.9,6.86201158]
[1680531056525,0.45436844,1807.0,1806.9,3.07600227]
[1680531056719,0.57990525,1807.2,1806.9,3.07600227]
[1680531057019,0.34807272,1807.1,1807.0,1.44115874]
[1680531057322,0.34807272,1807.1,1807.0,0.57815647]
[1680531057523,0.34807272,1807.1,1807.0,1.44115874]
[1680531057825,0.34807272,1807.1,1807.0,0.57815647]
[1680531058021,0.34807272,1807.1,1807.0,1.44115874]
[1680531058218,0.34807272,1807.1,1807.0,2.44115874]
[1680531058424,0.34807272,1807.1,1807.0,1.86300227]
[1680531058722,0.34807272,1807.1,1807.0,1.0]
[1680531059022,0.34807272,1807.1,1807.0,1.86300227]
[1680531059425,0.34807272,1807.1,1807.0,2.44112112]
[1680531059621,0.34807272,1807.1,1807.0,1.44112112]
[1680531060023,0.34807272,1807.1,1807.0,0.57811885]
[1680531060219,0.92797797,1807.1,1807.0,0.57811885]
[1680531060726,0.34807272,1807.1,1807.0,0.57811885]
[1680531063327,0.34807272,1807.1,1807.0,1.44112112]
[1680531063528,3.55587272,1807.1,1807.0,1.44112112]
[1680531063828,7.79818838,1807.1,1806.9,0.57811885]
[1680531064024,0.5796823,1807.0,1806.9,0.57811885]
[1680531065730,0.5796823,1807.0,1806.9,1.44112112]
[1680531066930,0.5796823,1807.0,1806.9,0.57811885]
[1680531068828,0.5796823,1807.0,1806.9,1.44112112]
[1680531069032,0.5796823,1807.0,1806.9,0.86300227]
[1680531069229,0.92775502,1807.1,1806.9,0.86300227]
[1680531069430,0.5796823,1807.0,1806.9,0.86300227]
[1680531070234,0.84610843,1807.0,1806.9,1.44161162]
[1680531070727,0.84610843,1807.0,1806.9,0.86300227]
[1680531071426,0.84610843,1807.0,1806.9,1.44157937]
[1680531071725,3.05910843,1807.0,1806.9,0.86300227]
[1680531071922,3.05910843,1807.0,1806.9,0.57857951]
[1680531071923,4.92895797,1807.0,1806.9,0.57857951]
[1680531072123,3.24115133,1807.0,1806.8,0.57857951]
[1680531072333,1.68681518,1806.9,1806.8,0.57857951]
[1680531072531,0.57981518,1806.9,1806.8,0.57857951]
[1680531072825,1.71596651,1807.0,1806.8,0.86300227]
[1680531073134,1.71596651,1807.0,1806.9,0.57863514]
[1680531073325,1.13615133,1807.0,1806.8,1.44163741]
[1680531073529,1.13615133,1807.0,1806.9,0.57863514]
[1680531073724,1.13615133,1807.0,1806.8,1.44163741]
[1680531073928,0.57978974,1806.9,1806.8,1.44163741]
[1680531074126,0.57978974,1806.9,1806.8,0.57863514]
[1680531075530,0.57978974,1806.9,1806.6,3.25646012]
[1680531075531,13.21458974,1806.9,1806.6,1.14946012]
[1680531075833,13.21458974,1806.9,1806.1,0.86892185]
[1680531075834,5.4218,1806.7,1806.1,0.86892185]
[1680531076028,18.80250231,1806.8,1806.0,2.17690637]
[1680531076029,0.57995918,1806.3,1806.0,2.17690637]
[1680531076224,1.68695918,1806.3,1806.1,0.86892185]
[1680531076430,0.57995918,1806.3,1806.2,1.107]
[1680531076628,0.57995918,1806.5,1806.2,2.26498452]
[1680531076831,0.57995918,1806.5,1806.3,4.07637435]
[1680531077127,1.68695918,1806.5,1806.3,0.86857435]
[1680531077431,1.68695918,1806.5,1806.2,0.86857435]
[1680531077432,0.57995918,1806.4,1806.2,0.86857435]
[1680531077633,0.57995918,1806.4,1806.2,4.07637435]
[1680531078024,1.68695918,1806.5,1806.1,1.86857435]
[1680531078529,1.107,1806.3,1806.1,0.86857435]
[1680531080927,1.107,1806.3,1806.0,2.01857435]
[1680531081434,1.102,1806.5,1806.1,4.07637435]
[1680531081736,1.102,1806.5,1806.2,1.0]
[1680531081942,1.102,1806.3,1806.1,0.86857435]
[1680531082238,1.102,1806.3,1806.0,1.01857435]
[1680531083833,1.102,1806.3,1806.0,0.15]
[1680531085142,0.60342269,1806.2,1806.0,0.15]
[1680531085438,0.60342269,1806.2,1806.1,1.97557435]
[1680531085941,0.54538936,1806.6,1806.1,2.97557435]
[1680531086143,4.88975918,1806.7,1806.2,4.2078]
[1680531086344,0.49862855,1806.5,1806.3,1.0]
[1680531086538,4.88975918,1806.7,1806.3,1.0]
[1680531086742,5.44609184,1806.7,1806.2,1.0]
[1680531087838,5.44609184,1806.7,1806.3,3.2078]
[1680531088041,1.107,1806.4,1806.0,6.33337435]
[1680531089046,1.107,1806.4,1806.0,5.33337435]
[1680531089445,1.107,1806.4,1806.0,4.4648]
[1680531089641,1.107,1806.4,1806.0,5.33337435]
[1680531090147,1.107,1806.4,1806.1,1.0]
[1680531090343,1.107,1806.4,1806.1,4.2078]
[1680531090549,1.107,1806.4,1806.1,5.07637435]
[1680531091643,1.107,1806.4,1806.1,3.2078]
[1680531093346,1.107,1806.4,1806.0,2.12557435]
[1680531093549,1.107,1806.1,1806.0,0.15]
[1680531093852,5.4218,1806.1,1806.0,0.15]
[1680531094847,6.4218,1806.1,1806.0,0.15]
[1680531095052,4.3148,1806.1,1806.0,0.15]
[1680531095351,5.3148,1806.1,1806.0,0.15]
[1680531097451,5.3148,1806.1,1805.4,6.18337435]
[1680531097452,0.15,1806.0,1805.4,0.86857435]
[1680531097644,1.107,1805.6,1805.3,1.43251714]
[1680531097950,1.107,1805.6,1805.3,4.64031714]
[1680531099549,1.105,1805.4,1805.3,0.56394279]
[1680531099748,1.105,1805.4,1805.1,4.86479305]
[1680531099944,1.105,1805.4,1805.1,3.2078]
[1680531100140,1.02305069,1805.3,1805.1,3.2078]
[1680531100342,1.02305069,1805.3,1805.0,0.6418313]
[1680531100648,1.105,1805.4,1805.1,3.2078]
[1680531101152,1.02275662,1805.3,1805.0,0.6418313]
[1680531101342,1.02275662,1805.3,1805.1,3.2078]
[1680531101651,1.1,1805.8,1805.1,3.2078]
[1680531101652,1.107,1805.5,1805.1,3.2078]
[1680531101854,1.102,1805.7,1805.3,3.2078]
[1680531102040,1.107,1805.8,1805.5,3.2078]
[1680531102952,1.107,1806.0,1805.7,3.2078]
[1680531105255,1.107,1806.0,1805.8,1.0]
[1680531105449,1.098,1806.2,1805.9,3.2078]
[1680531107555,1.105,1806.3,1806.0,1.0]
[1680531110856,1.105,1806.3,1806.1,3.2078]
[1680531111163,1.105,1806.3,1806.0,1.0]
[1680531112159,1.102,1806.3,1806.0,1.0]
[1680531112357,1.102,1806.3,1805.9,3.2078]
[1680531112764,1.102,1806.3,1806.0,1.0]
[1680531112962,1.102,1806.3,1806.2,3.2078]
[1680531113359,1.102,1806.3,1806.0,1.0]
[1680531114051,2.72444091,1806.4,1806.0,1.0]
[1680531114259,2.72444091,1806.4,1805.9,4.3148]
[1680531114260,1.102,1806.4,1805.9,4.3148]
[1680531114458,1.102,1806.4,1806.1,3.2078]
[1680531115161,0.21310409,1806.3,1806.1,3.2078]
[1680531115563,1.102,1806.4,1806.1,3.2078]
[1680531117765,1.102,1806.4,1806.3,4.3148]
[1680531117766,20.0,1806.4,1806.3,4.3148]
[1680531118569,20.0,1806.4,1806.3,6.18337435]
[1680531119268,20.0,1806.4,1806.3,6.43535949]
[1680531120167,1.105,1806.9,1806.4,3.091]
[1680531120361,1.105,1806.9,1806.6,3.2078]
[1680531120559,1.105,1806.9,1806.7,1.0]
[1680531120755,0.57995918,1807.0,1806.7,1.0]
[1680531120971,2.55689794,1807.1,1806.7,1.0]
[1680531121270,1.68695918,1807.1,1806.8,3.2078]
[1680531121664,1.107,1806.9,1806.5,1.0]
[1680531122162,1.107,1806.9,1806.6,3.2078]
[1680531122560,4.3148,1806.9,1806.4,7.96050922]
[1680531122756,4.89475918,1806.9,1806.4,4.3148]
[1680531123662,4.3148,1806.7,1806.3,0.25198514]
[1680531123866,1.107,1806.5,1806.3,0.25198514]
[1680531124168,1.107,1806.5,1806.2,3.2078]
[1680531126674,1.107,1806.5,1806.1,1.86857435]
[1680531127170,1.107,1806.5,1806.2,3.2078]
[1680531127468,1.107,1806.5,1806.3,1.0]
[1680531127669,1.107,1806.5,1806.2,4.2078]
[1680531128771,1.107,1806.5,1806.3,1.0]
[1680531129768,1.102,1806.7,1806.4,3.26835052]
[1680531129968,1.102,1806.7,1806.5,1.0]
[1680531130470,1.68695918,1806.9,1806.6,0.0598756]
[1680531130671,0.57995918,1807.0,1806.6,4.3746756]
[1680531130873,1.44989794,1807.0,1806.8,3.2078]
[1680531131072,1.105,1807.1,1806.9,1.0]
[1680531131970,1.105,1807.1,1806.8,3.2078]
[1680531132276,5.0,1806.9,1806.8,3.2078]
[1680531133176,5.0,1806.9,1806.8,4.3148]
[1680531134169,5.0,1806.9,1806.8,3.2078]
[1680531142076,5.0,1806.9,1806.6,0.0598756]
[1680531142273,6.107,1806.9,1806.6,0.0598756]
[1680531142668,1.105,1806.7,1806.2,4.07637435]
[1680531142979,1.105,1806.3,1806.0,3.2078]
[1680531144780,4.3128,1806.3,1806.0,3.2078]
[1680531144982,1.53814347,1806.2,1805.7,0.54727642]
[1680531145278,1.107,1806.0,1805.6,3.2078]
[1680531145884,2.107,1806.0,1805.6,3.2078]
[1680531146082,1.107,1806.0,1805.6,3.2078]
[1680531147599,1.107,1806.0,1805.6,4.07637435]
[1680531148791,2.0953045,1806.2,1805.6,5.18337435]
[1680531148995,2.0953045,1806.2,1805.8,3.2078]
[1680531152602,1.53814347,1806.2,1805.8,3.2078]
[1680531152798,0.43314347,1806.2,1805.8,4.3148]
[1680531153103,0.43314347,1806.2,1805.9,1.0]
[1680531153295,0.43314347,1806.2,1806.1,3.2078]
[1680531155196,1.097,1806.5,1806.1,4.2078]
[1680531156598,1.12565453,1806.7,1806.4,1.107]
[1680531156804,0.54569535,1806.7,1806.4,1.107]
[1680531157004,0.57995918,1806.8,1806.4,1.107]
[1680531157704,3.78775918,1806.8,1806.4,1.107]
[1680531158007,4.78775918,1806.8,1806.4,1.107]
[1680531158197,4.65769794,1806.8,1806.4,1.107]
[1680531158702,3.78775918,1806.8,1806.4,1.107]
[1680531160010,0.19300471,1806.7,1806.4,1.107]
[1680531160505,1.19300471,1806.7,1806.4,1.107]
[1680531160806,0.19300471,1806.7,1806.4,1.107]
[1680531162107,0.19300471,1806.7,1806.3,4.3068]
[1680531162307,4.3128,1806.6,1806.1,1.107]
[1680531162608,4.3128,1806.6,1806.1,2.107]
[1680531162807,4.3128,1806.6,1806.1,1.107]
[1680531163705,4.3128,1806.6,1806.1,2.107]
[1680531164006,4.3128,1806.6,1806.1,1.107]
[1680531164502,1.105,1806.6,1806.1,1.107]
[1680531164703,0.75428154,1806.7,1806.5,1.107]
[1680531169509,0.75428154,1806.7,1806.5,4.3148]
[1680531170110,0.19300471,1806.7,1806.6,1.107]
[1680531170504,5.0,1806.9,1806.6,1.15626161]
[1680531170707,5.0,1806.9,1806.7,3.2078]
[1680531172607,5.0,1806.9,1806.6,1.15626161]
[1680531172811,5.0,1806.9,1806.6,0.04926161]
[1680531173515,5.0,1806.9,1806.7,3.2078]
[1680531174713,5.0,1806.9,1806.5,1.107]
[1680531175014,1.107,1806.7,1806.4,3.2078]
[1680531175215,1.107,1806.7,1806.5,3.2078]
[1680531175823,1.107,1806.7,1806.2,5.3148]
[1680531176111,2.107,1806.7,1806.2,4.3148]
[1680531176318,1.107,1806.7,1806.2,4.3148]
[1680531178516,1.107,1806.7,1806.2,5.3148]
[1680531179505,3.88991739,1806.8,1806.2,4.2078]
[1680531179710,1.107,1806.7,1806.3,1.0]
[1680531179915,1.107,1806.7,1806.4,3.2078]
[1680531180420,0.68211739,1806.8,1806.4,4.3148]
[1680531180822,0.68211739,1806.8,1806.6,3.2078]
[1680531181025,0.10215821,1806.8,1806.6,3.2078]
[1680531181217,0.10215821,1806.8,1806.5,3.2078]
[1680531181615,6.68695918,1806.9,1806.5,3.2078]
[1680531182119,5.57995918,1806.9,1806.5,4.3148]
[1680531183119,5.57995918,1806.9,1806.5,4.3068]
[1680531183317,6.44989794,1806.9,1806.5,4.3068]
[1680531185222,0.57995918,1806.8,1806.5,4.3068]
[1680531187329,6.44989794,1806.9,1806.5,4.3068]
[1680531187524,6.44989794,1806.9,1806.7,3.2078]
[1680531187927,5.57995918,1806.9,1806.7,3.2078]
[1680531188328,5.57995918,1806.9,1806.8,1.107]
[1680531188531,5.57995918,1806.9,1806.8,0.09923268]